[Event "Early-Titled-Tuesday-Blitz-January-16-2024"]
[Site "Chess.com"]
[Date "2024.01.16"]
[Round "7"]
[White "Hikaru"]
[Black "FairChess_on_YouTube"]
[Result "1/2-1/2"]
[WhiteElo "3221"]
[BlackElo "3094"]
[TimeControl "180+1"]
[EndTime "9:24:10 PST"]
[Termination "Game drawn by 50-move rule"]

1. e4 {[%clk 0:03:00.9]} 1... c5 {[%clk 0:02:57.6]} 2. Nf3 {[%clk 0:02:58.2]}
2... e6 {[%clk 0:02:54.5]} 3. d4 {[%clk 0:02:57.9]} 3... cxd4 {[%clk 0:02:55.4]}
4. Nxd4 {[%clk 0:02:58.8]} 4... Nc6 {[%clk 0:02:55.6]} 5. Nc3 {[%clk 0:02:59]}
5... a6 {[%clk 0:02:56.1]} 6. Be3 {[%clk 0:02:58.3]} 6... Nf6 {[%clk 0:02:55.4]}
7. Qf3 {[%clk 0:02:58.2]} 7... Qc7 {[%clk 0:02:51.1]} 8. O-O-O {[%clk
0:02:53.6]} 8... Rb8 {[%clk 0:02:50.7]} 9. Qg3 {[%clk 0:02:53.7]} 9... Qxg3
{[%clk 0:02:50.4]} 10. hxg3 {[%clk 0:02:54]} 10... Ng4 {[%clk 0:02:51]} 11. Nxc6
{[%clk 0:02:32.5]} 11... bxc6 {[%clk 0:02:51.9]} 12. Ba7 {[%clk 0:02:32.9]}
12... Rb7 {[%clk 0:02:45.8]} 13. Be2 {[%clk 0:02:31.8]} 13... Rxa7 {[%clk
0:02:43.8]} 14. Bxg4 {[%clk 0:02:32.2]} 14... d6 {[%clk 0:02:28.9]} 15. f4
{[%clk 0:02:29.9]} 15... g6 {[%clk 0:02:17.6]} 16. Na4 {[%clk 0:02:27.3]} 16...
Rb7 {[%clk 0:02:13.7]} 17. c4 {[%clk 0:02:27.1]} 17... Rb4 {[%clk 0:02:10.7]}
18. b3 {[%clk 0:02:27.2]} 18... Ke7 {[%clk 0:02:09.2]} 19. Kc2 {[%clk
0:02:20.1]} 19... Bg7 {[%clk 0:02:06.3]} 20. a3 {[%clk 0:02:14.6]} 20... Rb8
{[%clk 0:02:01.3]} 21. b4 {[%clk 0:02:15.2]} 21... a5 {[%clk 0:01:51.4]} 22. c5
{[%clk 0:02:12.6]} 22... d5 {[%clk 0:01:33.7]} 23. exd5 {[%clk 0:02:13.5]} 23...
cxd5 {[%clk 0:01:27.6]} 24. Nb6 {[%clk 0:02:13.3]} 24... axb4 {[%clk 0:01:19.4]}
25. axb4 {[%clk 0:02:14.2]} 25... Ba6 {[%clk 0:01:18.8]} 26. Rhe1 {[%clk
0:02:14.6]} 26... Rxb6 {[%clk 0:01:07.3]} 27. cxb6 {[%clk 0:02:15]} 27... Rc8+
{[%clk 0:01:07.6]} 28. Kb1 {[%clk 0:02:14.7]} 28... Rc4 {[%clk 0:01:07]} 29.
Rxd5 {[%clk 0:02:08.1]} 29... Rxb4+ {[%clk 0:01:06.2]} 30. Kc1 {[%clk
0:02:06.2]} 30... Rxb6 {[%clk 0:01:02.3]} 31. Rc5 {[%clk 0:02:06.2]} 31... Bd4
{[%clk 0:00:50.9]} 32. Rc7+ {[%clk 0:01:56.6]} 32... Kf6 {[%clk 0:00:50.4]} 33.
Rd1 {[%clk 0:01:39]} 33... Be3+ {[%clk 0:00:34]} 34. Kc2 {[%clk 0:01:38.9]}
34... Bb5 {[%clk 0:00:34.6]} 35. Ra1 {[%clk 0:01:36.4]} 35... Bf2 {[%clk
0:00:31.1]} 36. Ra3 {[%clk 0:01:27.2]} 36... Rc6+ {[%clk 0:00:27.7]} 37. Rxc6
{[%clk 0:01:27.4]} 37... Bxc6 {[%clk 0:00:28.6]} 38. Bf3 {[%clk 0:01:27.9]}
38... Bb5 {[%clk 0:00:26.7]} 39. g4 {[%clk 0:01:26]} 39... Bg3 {[%clk
0:00:26.8]} 40. g5+ {[%clk 0:01:26.4]} 40... Kg7 {[%clk 0:00:24.3]} 41. Bc6
{[%clk 0:01:23.9]} 41... Bxc6 {[%clk 0:00:21.7]} 42. Rxg3 {[%clk 0:01:23.7]}
42... e5 {[%clk 0:00:17.3]} 43. fxe5 {[%clk 0:01:17.9]} 43... Bd5 {[%clk
0:00:17.3]} 44. Kd3 {[%clk 0:01:18.2]} 44... Be6 {[%clk 0:00:17.6]} 45. Ke3
{[%clk 0:01:16.3]} 45... Bd5 {[%clk 0:00:17.8]} 46. Kd4 {[%clk 0:01:16.3]} 46...
Be6 {[%clk 0:00:18]} 47. Rc3 {[%clk 0:01:16.4]} 47... Ba2 {[%clk 0:00:17.7]} 48.
Rh3 {[%clk 0:01:14.3]} 48... Be6 {[%clk 0:00:17.3]} 49. Rh4 {[%clk 0:01:14.7]}
49... Bb3 {[%clk 0:00:16.4]} 50. Kc5 {[%clk 0:01:15.2]} 50... Ba2 {[%clk
0:00:16]} 51. Kd6 {[%clk 0:01:15.5]} 51... Bb3 {[%clk 0:00:15.8]} 52. Rb4 {[%clk
0:01:14.9]} 52... Ba2 {[%clk 0:00:15.9]} 53. Rb2 {[%clk 0:01:14.4]} 53... Bc4
{[%clk 0:00:15.5]} 54. Ke7 {[%clk 0:01:15.3]} 54... Bd5 {[%clk 0:00:15.1]} 55.
Rf2 {[%clk 0:01:14.7]} 55... Bc4 {[%clk 0:00:15]} 56. Rd2 {[%clk 0:01:12.1]}
56... Be6 {[%clk 0:00:14.4]} 57. Rd8 {[%clk 0:01:11.3]} 57... Bc4 {[%clk
0:00:14.4]} 58. Rd6 {[%clk 0:01:11.9]} 58... Bb3 {[%clk 0:00:14.5]} 59. Rd7
{[%clk 0:01:08.8]} 59... Ba2 {[%clk 0:00:14.3]} 60. Kd6 {[%clk 0:01:08.6]} 60...
Bb3 {[%clk 0:00:14.4]} 61. Re7 {[%clk 0:01:09]} 61... Ba2 {[%clk 0:00:14.6]} 62.
Rc7 {[%clk 0:00:43.9]} 62... Bb3 {[%clk 0:00:14.8]} 63. Rc3 {[%clk 0:00:43.8]}
63... Ba2 {[%clk 0:00:14.9]} 64. Rc1 {[%clk 0:00:44.7]} 64... Bb3 {[%clk
0:00:15.2]} 65. Ke7 {[%clk 0:00:44.9]} 65... Ba2 {[%clk 0:00:15.3]} 66. Rd1
{[%clk 0:00:38.5]} 66... Bb3 {[%clk 0:00:15.4]} 67. Rd2 {[%clk 0:00:39.4]} 67...
Bc4 {[%clk 0:00:15.5]} 68. Rb2 {[%clk 0:00:40.3]} 68... Bd5 {[%clk 0:00:15.6]}
69. Kd6 {[%clk 0:00:41]} 69... Be6 {[%clk 0:00:15.5]} 70. Rf2 {[%clk 0:00:41.9]}
70... Bc4 {[%clk 0:00:15.6]} 71. Rf6 {[%clk 0:00:42.6]} 71... Bb3 {[%clk
0:00:15.6]} 72. Ke7 {[%clk 0:00:43.5]} 72... Ba2 {[%clk 0:00:15.6]} 73. Rf4
{[%clk 0:00:43.9]} 73... Bb3 {[%clk 0:00:15.9]} 74. Rh4 {[%clk 0:00:44.6]} 74...
Ba2 {[%clk 0:00:16.1]} 75. Rh1 {[%clk 0:00:45.3]} 75... Bd5 {[%clk 0:00:16]} 76.
Rg1 {[%clk 0:00:46.2]} 76... Bc4 {[%clk 0:00:16.2]} 77. Rd1 {[%clk 0:00:46.4]}
77... Bb3 {[%clk 0:00:16.3]} 78. Rd2 {[%clk 0:00:46.7]} 78... Bc4 {[%clk
0:00:16.6]} 79. Rf2 {[%clk 0:00:46.6]} 79... Bb3 {[%clk 0:00:16.9]} 80. Kd6
{[%clk 0:00:47.3]} 80... Bc4 {[%clk 0:00:17.2]} 81. Kc5 {[%clk 0:00:48.2]} 81...
Be6 {[%clk 0:00:17.3]} 82. Kd4 {[%clk 0:00:49.1]} 82... Bb3 {[%clk 0:00:17.3]}
83. Rf6 {[%clk 0:00:49.8]} 83... Ba2 {[%clk 0:00:16.9]} 84. Rb6 {[%clk
0:00:50.1]} 84... Kg8 {[%clk 0:00:15.1]} 85. Rd6 {[%clk 0:00:39.5]} 85... Kg7
{[%clk 0:00:14.9]} 86. Kc3 {[%clk 0:00:39.9]} 86... Kf8 {[%clk 0:00:12.3]} 87.
Rd8+ {[%clk 0:00:37.5]} 87... Kg7 {[%clk 0:00:11.4]} 88. Re8 {[%clk 0:00:38.1]}
88... Bd5 {[%clk 0:00:11.1]} 89. Kd4 {[%clk 0:00:37.6]} 89... Ba2 {[%clk
0:00:09.2]} 90. Kc5 {[%clk 0:00:35.7]} 90... Bb3 {[%clk 0:00:09.3]} 91. Re7
{[%clk 0:00:35.8]} 91... Ba2 {[%clk 0:00:09.4]} 92. Rb7 {[%clk 0:00:34.4]} 92...
Be6 {[%clk 0:00:09]} 93. Rb6 {[%clk 0:00:35.1]} 1/2-1/2

[Event "Early-Titled-Tuesday-Blitz-January-16-2024"]
[Site "Chess.com"]
[Date "2024.01.16"]
[Round "7"]
[White "JimDiGrease"]
[Black "KacperKacprzak"]
[Result "0-1"]
[WhiteElo "2971"]
[BlackElo "2711"]
[TimeControl "180+1"]
[EndTime "9:24:15 PST"]
[Termination "KacperKacprzak won on time"]

1. d4 {[%clk 0:03:00.9]} 1... Nf6 {[%clk 0:02:58.9]} 2. c4 {[%clk 0:03:01.6]}
2... e6 {[%clk 0:02:58.5]} 3. Bf4 {[%clk 0:03:02.1]} 3... b6 {[%clk 0:02:50.7]}
4. Nc3 {[%clk 0:03:01.5]} 4... Bb7 {[%clk 0:02:50.7]} 5. e3 {[%clk 0:03:01.6]}
5... Bb4 {[%clk 0:02:45.1]} 6. Ne2 {[%clk 0:03:01.8]} 6... O-O {[%clk
0:02:45.1]} 7. a3 {[%clk 0:03:01.7]} 7... Bxc3+ {[%clk 0:02:44.7]} 8. Nxc3
{[%clk 0:03:02.5]} 8... d6 {[%clk 0:02:45.6]} 9. Bd3 {[%clk 0:02:55.5]} 9... Qe7
{[%clk 0:02:45.2]} 10. O-O {[%clk 0:02:54.9]} 10... Nbd7 {[%clk 0:02:45.6]} 11.
h3 {[%clk 0:02:46.5]} 11... e5 {[%clk 0:02:45.7]} 12. Bg3 {[%clk 0:02:44.3]}
12... Rfe8 {[%clk 0:02:46]} 13. Qc2 {[%clk 0:02:39.6]} 13... h6 {[%clk
0:02:44.5]} 14. Rfd1 {[%clk 0:02:25.1]} 14... a6 {[%clk 0:02:28.1]} 15. Bh4
{[%clk 0:02:04.2]} 15... Qf8 {[%clk 0:01:47.5]} 16. d5 {[%clk 0:02:01.1]} 16...
g5 {[%clk 0:01:29.5]} 17. Bg3 {[%clk 0:02:00.6]} 17... Nc5 {[%clk 0:01:25.7]}
18. Be2 {[%clk 0:01:49]} 18... Bc8 {[%clk 0:01:17.4]} 19. b4 {[%clk 0:01:48.9]}
19... Nb7 {[%clk 0:01:16.5]} 20. e4 {[%clk 0:01:45.2]} 20... Bd7 {[%clk
0:01:13.9]} 21. Qd2 {[%clk 0:01:41.7]} 21... Nh7 {[%clk 0:01:12.7]} 22. Rab1
{[%clk 0:01:31]} 22... Qg7 {[%clk 0:01:12.3]} 23. Qe3 {[%clk 0:01:13.7]} 23...
Nf8 {[%clk 0:01:12.2]} 24. Bg4 {[%clk 0:01:00.3]} 24... Rad8 {[%clk 0:00:59.7]}
25. f3 {[%clk 0:00:57]} 25... Ng6 {[%clk 0:00:58.2]} 26. Bf2 {[%clk 0:00:56.9]}
26... Nf4 {[%clk 0:00:56.4]} 27. Kh2 {[%clk 0:00:51.9]} 27... Rf8 {[%clk
0:00:51.2]} 28. g3 {[%clk 0:00:40.9]} 28... Ng6 {[%clk 0:00:50.7]} 29. Bf5
{[%clk 0:00:40.7]} 29... Ne7 {[%clk 0:00:50.2]} 30. g4 {[%clk 0:00:35.6]} 30...
Ng6 {[%clk 0:00:49.6]} 31. Bg3 {[%clk 0:00:25.7]} 31... Nf4 {[%clk 0:00:48.3]}
32. h4 {[%clk 0:00:21.3]} 32... Qf6 {[%clk 0:00:47.4]} 33. h5 {[%clk 0:00:20.8]}
33... Kg7 {[%clk 0:00:46.6]} 34. Kg1 {[%clk 0:00:20.1]} 34... Rfe8 {[%clk
0:00:45]} 35. Qd2 {[%clk 0:00:17.4]} 35... Qe7 {[%clk 0:00:44.7]} 36. Kh2 {[%clk
0:00:16.9]} 36... Rb8 {[%clk 0:00:45.2]} 37. Bf2 {[%clk 0:00:16.9]} 37... Rec8
{[%clk 0:00:44.2]} 38. Rdc1 {[%clk 0:00:16.3]} 38... Nd8 {[%clk 0:00:34.2]} 39.
Nd1 {[%clk 0:00:15.9]} 39... Qe8 {[%clk 0:00:31.2]} 40. Bxd7 {[%clk 0:00:14.8]}
40... Qxd7 {[%clk 0:00:32.1]} 41. Ne3 {[%clk 0:00:15.6]} 41... Kh7 {[%clk
0:00:31.5]} 42. Nf5 {[%clk 0:00:15.6]} 42... Nb7 {[%clk 0:00:30.7]} 43. Be3
{[%clk 0:00:13.7]} 43... Qa4 {[%clk 0:00:29.7]} 44. Rc3 {[%clk 0:00:12.5]} 44...
Qd7 {[%clk 0:00:26.3]} 45. Qc2 {[%clk 0:00:11.7]} 45... a5 {[%clk 0:00:26.7]}
46. Rc1 {[%clk 0:00:11.7]} 46... Ra8 {[%clk 0:00:25.6]} 47. c5 {[%clk
0:00:10.6]} 47... bxc5 {[%clk 0:00:25.4]} 48. bxc5 {[%clk 0:00:10.9]} 48... dxc5
{[%clk 0:00:25.4]} 49. Bxc5 {[%clk 0:00:11.6]} 49... Ra6 {[%clk 0:00:18.6]} 50.
Be3 {[%clk 0:00:10]} 50... Nd6 {[%clk 0:00:15.1]} 51. Rxc7 {[%clk 0:00:08.6]}
51... Rxc7 {[%clk 0:00:14.4]} 52. Qxc7 {[%clk 0:00:09.5]} 52... Qxc7 {[%clk
0:00:15.1]} 53. Rxc7 {[%clk 0:00:10.4]} 53... Nxf5 {[%clk 0:00:15.4]} 54. Rxf7+
{[%clk 0:00:10.8]} 54... Ng7 {[%clk 0:00:14.8]} 55. Re7 {[%clk 0:00:09.1]} 55...
Nd3 {[%clk 0:00:13.9]} 56. Rd7 {[%clk 0:00:05.4]} 56... Kg8 {[%clk 0:00:13.8]}
57. Kg2 {[%clk 0:00:05.7]} 57... Kf8 {[%clk 0:00:14.2]} 58. Kf1 {[%clk
0:00:05.6]} 58... Ne8 {[%clk 0:00:14.8]} 59. Ke2 {[%clk 0:00:05.4]} 59... Nf4+
{[%clk 0:00:15]} 60. Kd2 {[%clk 0:00:05.7]} 60... a4 {[%clk 0:00:12.9]} 61. Bc5+
{[%clk 0:00:06]} 61... Kg8 {[%clk 0:00:12.5]} 62. Kc3 {[%clk 0:00:06.5]} 62...
Ra8 {[%clk 0:00:09.8]} 63. Kc4 {[%clk 0:00:06.7]} 63... Rc8 {[%clk 0:00:09.5]}
64. Kb5 {[%clk 0:00:06.1]} 64... Nd3 {[%clk 0:00:10]} 65. Bb4 {[%clk 0:00:04.4]}
65... Rb8+ {[%clk 0:00:07.6]} 66. Kxa4 {[%clk 0:00:04.1]} 66... Ra8+ {[%clk
0:00:07]} 67. Kb3 {[%clk 0:00:04.2]} 67... Rb8 {[%clk 0:00:07.2]} 68. Re7 {[%clk
0:00:03.7]} 68... Nd6 {[%clk 0:00:05.9]} 69. Rxe5 {[%clk 0:00:03.7]} 69... Nxe5
{[%clk 0:00:05.8]} 70. Kc3 {[%clk 0:00:03]} 70... Nef7 {[%clk 0:00:04.2]} 71.
Kd4 {[%clk 0:00:03.1]} 71... Nb5+ {[%clk 0:00:04.3]} 72. Kc5 {[%clk 0:00:03.4]}
72... Nbd6 {[%clk 0:00:02.6]} 73. Kd4 {[%clk 0:00:03.7]} 73... Rc8 {[%clk
0:00:03.1]} 74. Bc5 {[%clk 0:00:02.5]} 74... Nb5+ {[%clk 0:00:03.2]} 75. Kc4
{[%clk 0:00:03.2]} 75... Nxa3+ {[%clk 0:00:03.8]} 76. Kb4 {[%clk 0:00:03.3]}
76... Nc2+ {[%clk 0:00:04.5]} 77. Kb5 {[%clk 0:00:04]} 77... Ne1 {[%clk
0:00:05.1]} 78. d6 {[%clk 0:00:03.5]} 78... Nxf3 {[%clk 0:00:05.2]} 79. d7
{[%clk 0:00:02.3]} 79... Rd8 {[%clk 0:00:05.6]} 80. Kc6 {[%clk 0:00:03.2]} 80...
N3e5+ {[%clk 0:00:06.2]} 0-1

[Event "Early-Titled-Tuesday-Blitz-January-16-2024"]
[Site "Chess.com"]
[Date "2024.01.16"]
[Round "7"]
[White "YurasovMat-2012"]
[Black "Garbaranza"]
[Result "1-0"]
[WhiteElo "2592"]
[BlackElo "2430"]
[TimeControl "180+1"]
[EndTime "9:24:17 PST"]
[Termination "YurasovMat-2012 won by checkmate"]

1. e4 {[%clk 0:03:00.9]} 1... e5 {[%clk 0:03:00]} 2. Nf3 {[%clk 0:02:58.8]} 2...
Nc6 {[%clk 0:03:00.5]} 3. Bc4 {[%clk 0:02:55.2]} 3... Bc5 {[%clk 0:02:59.6]} 4.
O-O {[%clk 0:02:49.7]} 4... d6 {[%clk 0:02:57.4]} 5. d3 {[%clk 0:02:49.4]} 5...
h6 {[%clk 0:02:51.6]} 6. c3 {[%clk 0:02:42.5]} 6... Qf6 {[%clk 0:02:51.1]} 7.
Be3 {[%clk 0:02:41.3]} 7... Nge7 {[%clk 0:02:48.2]} 8. d4 {[%clk 0:02:40.8]}
8... Bb6 {[%clk 0:02:47.2]} 9. Nbd2 {[%clk 0:02:31.1]} 9... Ng6 {[%clk
0:02:44.4]} 10. Bd5 {[%clk 0:02:26.9]} 10... Nce7 {[%clk 0:02:42]} 11. Bb3
{[%clk 0:02:24.4]} 11... a6 {[%clk 0:02:26.2]} 12. Nc4 {[%clk 0:02:21.8]} 12...
Ba7 {[%clk 0:02:24.7]} 13. dxe5 {[%clk 0:02:21.1]} 13... dxe5 {[%clk 0:02:20.9]}
14. Bxa7 {[%clk 0:02:20.4]} 14... Rxa7 {[%clk 0:02:21.2]} 15. Ne3 {[%clk
0:02:17.9]} 15... Nf4 {[%clk 0:02:15.8]} 16. Nd2 {[%clk 0:02:13.2]} 16... O-O
{[%clk 0:02:02.7]} 17. Re1 {[%clk 0:02:09.4]} 17... Rd8 {[%clk 0:02:00.7]} 18.
Qc2 {[%clk 0:02:06.8]} 18... Neg6 {[%clk 0:01:40.9]} 19. Nd5 {[%clk 0:01:58.2]}
19... Qg5 {[%clk 0:01:30.5]} 20. g3 {[%clk 0:01:53.5]} 20... Nh3+ {[%clk
0:01:23.8]} 21. Kf1 {[%clk 0:01:48.4]} 21... c6 {[%clk 0:01:14]} 22. Ne3 {[%clk
0:01:40.4]} 22... Qf6 {[%clk 0:01:10.5]} 23. Nf5 {[%clk 0:01:25.6]} 23... Ne7
{[%clk 0:00:58.9]} 24. Nxe7+ {[%clk 0:01:19.7]} 24... Qxe7 {[%clk 0:00:59]} 25.
Kg2 {[%clk 0:00:56.3]} 25... Qg5 {[%clk 0:00:42.4]} 26. Re3 {[%clk 0:00:43.7]}
26... b5 {[%clk 0:00:38.8]} 27. Nf3 {[%clk 0:00:37.6]} 27... Qh5 {[%clk
0:00:34.4]} 28. Rd1 {[%clk 0:00:27.6]} 28... Rad7 {[%clk 0:00:29.4]} 29. Rxd7
{[%clk 0:00:26.3]} 29... Rxd7 {[%clk 0:00:28.4]} 30. Rd3 {[%clk 0:00:21.8]}
30... Ng5 {[%clk 0:00:22]} 31. Nxe5 {[%clk 0:00:14.2]} 31... Qh3+ {[%clk
0:00:18.1]} 32. Kg1 {[%clk 0:00:14]} 32... Rxd3 {[%clk 0:00:16.7]} 33. Qxd3
{[%clk 0:00:13.1]} 33... Kh7 {[%clk 0:00:15.5]} 34. f4 {[%clk 0:00:11.7]} 34...
Ne6 {[%clk 0:00:12.3]} 35. Nxf7 {[%clk 0:00:10.3]} 35... Nxf4 {[%clk 0:00:10.9]}
36. Qf3 {[%clk 0:00:06.2]} 36... Ng6 {[%clk 0:00:09.9]} 37. e5 {[%clk
0:00:05.5]} 37... Qf5 {[%clk 0:00:06.7]} 38. Qxf5 {[%clk 0:00:05.3]} 38... Bxf5
{[%clk 0:00:06.6]} 39. e6 {[%clk 0:00:05.4]} 39... Ne7 {[%clk 0:00:06.8]} 40.
Nd6 {[%clk 0:00:05.3]} 40... Kg6 {[%clk 0:00:06.6]} 41. Kf2 {[%clk 0:00:04.1]}
41... Kf6 {[%clk 0:00:06.6]} 42. Ne8+ {[%clk 0:00:03.9]} 42... Ke5 {[%clk
0:00:06]} 43. Nxg7 {[%clk 0:00:03.3]} 43... Bg4 {[%clk 0:00:06]} 44. Ne8 {[%clk
0:00:01.8]} 44... c5 {[%clk 0:00:05.8]} 45. Ke3 {[%clk 0:00:02.1]} 45... c4
{[%clk 0:00:06.1]} 46. Bc2 {[%clk 0:00:02.6]} 46... Bxe6 {[%clk 0:00:06.4]} 47.
Nc7 {[%clk 0:00:02.6]} 47... Nd5+ {[%clk 0:00:07.1]} 48. Nxd5 {[%clk 0:00:02.6]}
48... Bxd5 {[%clk 0:00:07.8]} 49. g4 {[%clk 0:00:03.1]} 49... a5 {[%clk
0:00:08.2]} 50. h4 {[%clk 0:00:03.1]} 50... b4 {[%clk 0:00:08.9]} 51. g5 {[%clk
0:00:03.2]} 51... hxg5 {[%clk 0:00:09.2]} 52. hxg5 {[%clk 0:00:04.1]} 52... b3
{[%clk 0:00:06.8]} 53. axb3 {[%clk 0:00:03.6]} 53... cxb3 {[%clk 0:00:07.1]} 54.
Bb1 {[%clk 0:00:04.3]} 54... a4 {[%clk 0:00:07.6]} 55. g6 {[%clk 0:00:04.7]}
55... Bg8 {[%clk 0:00:06.2]} 56. Kd2 {[%clk 0:00:04.9]} 56... Kd5 {[%clk
0:00:05.8]} 57. Bd3 {[%clk 0:00:02.4]} 57... Kc5 {[%clk 0:00:05.9]} 58. Ke3
{[%clk 0:00:02.1]} 58... a3 {[%clk 0:00:04.5]} 59. bxa3 {[%clk 0:00:01.9]} 59...
b2 {[%clk 0:00:05.2]} 60. Bb1 {[%clk 0:00:02.4]} 60... Kb5 {[%clk 0:00:04.5]}
61. Kd2 {[%clk 0:00:03]} 61... Ka4 {[%clk 0:00:05]} 62. c4 {[%clk 0:00:03.3]}
62... Kxa3 {[%clk 0:00:05.4]} 63. Kc3 {[%clk 0:00:03.7]} 63... Ka4 {[%clk
0:00:04.8]} 64. Kxb2 {[%clk 0:00:04.2]} 64... Ka5 {[%clk 0:00:05.4]} 65. Ba2
{[%clk 0:00:04.3]} 65... Kb6 {[%clk 0:00:06]} 66. c5+ {[%clk 0:00:04.8]} 66...
Kxc5 {[%clk 0:00:06.6]} 67. Bxg8 {[%clk 0:00:05.6]} 67... Kd6 {[%clk 0:00:05.5]}
68. g7 {[%clk 0:00:05.9]} 68... Ke7 {[%clk 0:00:05.9]} 69. Ba2 {[%clk
0:00:06.8]} 69... Kf6 {[%clk 0:00:06.4]} 70. g8=Q {[%clk 0:00:07.7]} 70... Ke5
{[%clk 0:00:06.9]} 71. Qe6+ {[%clk 0:00:07.5]} 71... Kd4 {[%clk 0:00:07.6]} 72.
Qd5+ {[%clk 0:00:07.2]} 72... Ke3 {[%clk 0:00:07.4]} 73. Kc3 {[%clk 0:00:07.6]}
73... Ke2 {[%clk 0:00:07.7]} 74. Qd4 {[%clk 0:00:07.4]} 74... Kf3 {[%clk
0:00:07.4]} 75. Bd5+ {[%clk 0:00:04.5]} 75... Kg3 {[%clk 0:00:07.9]} 76. Qe3+
{[%clk 0:00:04.5]} 76... Kg4 {[%clk 0:00:07.6]} 77. Be6+ {[%clk 0:00:04.4]}
77... Kh5 {[%clk 0:00:07.3]} 78. Qg3 {[%clk 0:00:03.7]} 78... Kh6 {[%clk
0:00:07.5]} 79. Bf5 {[%clk 0:00:03.9]} 79... Kh5 {[%clk 0:00:07.4]} 80. Kd4
{[%clk 0:00:03.3]} 80... Kh6 {[%clk 0:00:06.2]} 81. Qg6# {[%clk 0:00:04.2]} 1-0

[Event "Early-Titled-Tuesday-Blitz-January-16-2024"]
[Site "Chess.com"]
[Date "2024.01.16"]
[Round "7"]
[White "inneremptiness"]
[Black "Sanan_Sjugirov"]
[Result "0-1"]
[WhiteElo "2884"]
[BlackElo "2973"]
[TimeControl "180+1"]
[EndTime "9:24:22 PST"]
[Termination "Sanan_Sjugirov won by resignation"]

1. e4 {[%clk 0:02:57.3]} 1... c5 {[%clk 0:02:59.5]} 2. Nf3 {[%clk 0:02:57.2]}
2... Nc6 {[%clk 0:03:00.2]} 3. d4 {[%clk 0:02:56.7]} 3... cxd4 {[%clk
0:03:00.2]} 4. Nxd4 {[%clk 0:02:57.6]} 4... e6 {[%clk 0:03:00.7]} 5. Nc3 {[%clk
0:02:55.8]} 5... a6 {[%clk 0:03:01.3]} 6. Nxc6 {[%clk 0:02:52.3]} 6... bxc6
{[%clk 0:03:02.2]} 7. Bd3 {[%clk 0:02:51.6]} 7... d5 {[%clk 0:03:02.3]} 8. O-O
{[%clk 0:02:50.5]} 8... Nf6 {[%clk 0:03:02.6]} 9. e5 {[%clk 0:02:49.6]} 9... Nd7
{[%clk 0:03:02.5]} 10. Re1 {[%clk 0:02:50.3]} 10... Be7 {[%clk 0:02:58.8]} 11.
b3 {[%clk 0:02:36.3]} 11... Bb7 {[%clk 0:02:55.6]} 12. Na4 {[%clk 0:02:36.3]}
12... c5 {[%clk 0:02:53.1]} 13. c4 {[%clk 0:02:35.7]} 13... d4 {[%clk
0:02:50.3]} 14. f4 {[%clk 0:02:31.3]} 14... g6 {[%clk 0:02:48.8]} 15. Qe2 {[%clk
0:02:28.1]} 15... h5 {[%clk 0:02:46.7]} 16. Bd2 {[%clk 0:02:25.5]} 16... Qc7
{[%clk 0:02:40.8]} 17. Nb2 {[%clk 0:02:20.1]} 17... h4 {[%clk 0:02:39.7]} 18. h3
{[%clk 0:02:19.8]} 18... a5 {[%clk 0:02:33.1]} 19. Nd1 {[%clk 0:02:16.4]} 19...
Bc6 {[%clk 0:02:20.2]} 20. Nf2 {[%clk 0:02:15.5]} 20... Qb7 {[%clk 0:02:20.8]}
21. Ne4 {[%clk 0:02:14.4]} 21... Kf8 {[%clk 0:02:16.3]} 22. Qg4 {[%clk
0:02:13.6]} 22... Rh5 {[%clk 0:02:13.7]} 23. Ng5 {[%clk 0:02:12.5]} 23... Bxg5
{[%clk 0:02:05]} 24. fxg5 {[%clk 0:02:13.4]} 24... Kg7 {[%clk 0:02:04.8]} 25.
Rab1 {[%clk 0:01:42.7]} 25... Rh7 {[%clk 0:01:59.8]} 26. Re2 {[%clk 0:01:40.9]}
26... Kg8 {[%clk 0:01:13.9]} 27. Rf1 {[%clk 0:01:35]} 27... a4 {[%clk
0:00:56.8]} 28. b4 {[%clk 0:01:03.9]} 28... cxb4 {[%clk 0:00:55.1]} 29. Qxd4
{[%clk 0:01:04.6]} 29... b3 {[%clk 0:00:47.8]} 30. axb3 {[%clk 0:01:05.2]} 30...
axb3 {[%clk 0:00:48.6]} 31. Bc3 {[%clk 0:01:05.4]} 31... Rh5 {[%clk 0:00:38.1]}
32. Qf4 {[%clk 0:00:57.9]} 32... Nc5 {[%clk 0:00:37.2]} 33. Bb1 {[%clk
0:00:51.4]} 33... Qe7 {[%clk 0:00:33.3]} 34. Bb4 {[%clk 0:00:50.4]} 34... Rb8
{[%clk 0:00:13.4]} 35. Ba3 {[%clk 0:00:44.3]} 35... Qa7 {[%clk 0:00:13.2]} 36.
Kh2 {[%clk 0:00:39]} 36... Rh7 {[%clk 0:00:09.8]} 37. Bb2 {[%clk 0:00:31.1]}
37... Na4 {[%clk 0:00:10.2]} 38. Bd4 {[%clk 0:00:31.5]} 38... Qe7 {[%clk
0:00:10.7]} 39. Ref2 {[%clk 0:00:31.6]} 39... Rb7 {[%clk 0:00:09.2]} 40. Qf6
{[%clk 0:00:20.4]} 40... Qxf6 {[%clk 0:00:09.2]} 41. exf6 {[%clk 0:00:20.8]}
41... Rh8 {[%clk 0:00:08.4]} 42. Rf4 {[%clk 0:00:18.7]} 42... Rd7 {[%clk
0:00:08.6]} 43. Re1 {[%clk 0:00:16.6]} 43... Rh5 {[%clk 0:00:08.5]} 44. Bxg6
{[%clk 0:00:16.1]} 44... Rxg5 {[%clk 0:00:08.3]} 45. Be4 {[%clk 0:00:03.8]}
45... Rxd4 {[%clk 0:00:08]} 46. Bxc6 {[%clk 0:00:02.4]} 46... Rxf4 {[%clk
0:00:08.4]} 47. Bxa4 {[%clk 0:00:03.2]} 47... Rxc4 {[%clk 0:00:08.8]} 48. Bxb3
{[%clk 0:00:03.9]} 48... Rf4 {[%clk 0:00:09.4]} 49. Bd1 {[%clk 0:00:03]} 49...
Rxf6 {[%clk 0:00:09.4]} 50. Bf3 {[%clk 0:00:03.4]} 50... Rf4 {[%clk 0:00:09.3]}
51. Rb1 {[%clk 0:00:03.9]} 51... Kg7 {[%clk 0:00:09.9]} 52. Rb7 {[%clk
0:00:04.3]} 52... e5 {[%clk 0:00:09.8]} 53. Re7 {[%clk 0:00:04.6]} 53... Kf6
{[%clk 0:00:09.5]} 54. Re8 {[%clk 0:00:05.2]} 54... Kf5 {[%clk 0:00:06.4]} 55.
Re7 {[%clk 0:00:03.8]} 55... f6 {[%clk 0:00:06.5]} 56. Bb7 {[%clk 0:00:03.9]}
56... Kg6 {[%clk 0:00:06.1]} 57. Bc6 {[%clk 0:00:03.2]} 57... Rg3 {[%clk
0:00:06.3]} 58. Be8+ {[%clk 0:00:03.3]} 58... Kh6 {[%clk 0:00:06.8]} 59. Bc6
{[%clk 0:00:03.4]} 59... Rc4 {[%clk 0:00:06.4]} 60. Bd5 {[%clk 0:00:03.3]} 60...
Rd4 {[%clk 0:00:05.2]} 61. Bc6 {[%clk 0:00:03.8]} 61... Rd6 {[%clk 0:00:03.7]}
62. Be4 {[%clk 0:00:04.2]} 62... Kg5 {[%clk 0:00:03.6]} 63. Rh7 {[%clk
0:00:04.4]} 63... Re3 {[%clk 0:00:03.2]} 64. Bb7 {[%clk 0:00:03.9]} 64... e4
{[%clk 0:00:03.3]} 65. Rg7+ {[%clk 0:00:04]} 65... Kf5 {[%clk 0:00:03.8]} 66.
Bc8+ {[%clk 0:00:04.5]} 66... Ke5 {[%clk 0:00:03.9]} 67. Rg4 {[%clk 0:00:05.3]}
67... f5 {[%clk 0:00:04]} 68. Rxh4 {[%clk 0:00:05.7]} 68... Rc3 {[%clk
0:00:03.1]} 69. Rh8 {[%clk 0:00:06.1]} 69... Rdc6 {[%clk 0:00:03]} 70. Re8+
{[%clk 0:00:06.8]} 70... Kd4 {[%clk 0:00:03]} 71. Bxf5 {[%clk 0:00:06.7]} 71...
e3 {[%clk 0:00:03.3]} 72. Re4+ {[%clk 0:00:07.3]} 72... Kd5 {[%clk 0:00:03.7]}
73. Re8 {[%clk 0:00:06.9]} 73... Rf6 {[%clk 0:00:03.1]} 74. Be4+ {[%clk
0:00:07]} 74... Kd4 {[%clk 0:00:03.3]} 75. Bf3 {[%clk 0:00:07.7]} 75... Kd3
{[%clk 0:00:03.5]} 76. Kg3 {[%clk 0:00:08.1]} 76... Kd2 {[%clk 0:00:03.1]} 77.
Rd8+ {[%clk 0:00:08.8]} 77... Rd3 {[%clk 0:00:03.3]} 78. Ra8 {[%clk 0:00:09.3]}
78... Rxf3+ {[%clk 0:00:03.4]} 79. gxf3 {[%clk 0:00:09.9]} 79... e2 {[%clk
0:00:03.9]} 80. Ra2+ {[%clk 0:00:07.8]} 80... Ke3 {[%clk 0:00:04.3]} 81. Ra1
{[%clk 0:00:08.1]} 81... Rd1 {[%clk 0:00:04.7]} 82. Rxd1 {[%clk 0:00:08.9]}
82... exd1=Q {[%clk 0:00:04.7]} 83. h4 {[%clk 0:00:09.8]} 83... Qg1+ {[%clk
0:00:04.7]} 0-1